bitfinex-derivatives/quotes_SOLF0:USTF0_20250320
["timestamp","ask_amount","ask_price","bid_price","bid_amount"]
[1742501842095,35.3515,128.08,128.05,20.40432867]
[1742501842899,27.54,128.08,128.06,7.8125]
[1742501843085,7.8111,128.09,128.07,12.53745224]
[1742501845001,7.8111,128.09,128.08,12.53745224]
[1742501845505,7.8115,128.08,128.07,12.53745224]
[1742501845689,7.8115,128.08,128.06,12.53745224]
[1742501845895,646.03913762,128.1,128.06,12.53745224]
[1742501846186,7.8119,128.07,128.05,12.59132867]
[1742501847797,7.8119,128.07,128.06,12.53745224]
[1742501849702,12.53745224,128.09,128.05,12.59132867]
[1742501850002,7.8117,128.08,128.06,12.53745224]
[1742501850203,646.03913762,128.1,128.06,12.53745224]
[1742501850391,646.03913762,128.1,128.07,12.53745224]
[1742501850798,7.811,128.09,128.07,20.34935224]
[1742501852403,646.03913762,128.1,128.08,12.53745224]
[1742501852597,618.49913762,128.1,128.08,12.53745224]
[1742501852792,618.49913762,128.1,128.08,12.59231382]
[1742501853503,7.8107,128.09,128.08,12.59231382]
[1742501854100,626.30953762,128.1,128.08,12.59231382]
[1742501854309,615.20873762,128.1,128.09,20.34815224]
[1742501855002,615.20873762,128.1,128.09,12.53745224]
[1742501856506,615.20873762,128.1,128.09,20.34815224]
[1742501862011,623.01883762,128.1,128.09,12.53745224]
[1742501865510,306.63971543,128.1,128.09,47.86815224]
[1742501865705,278.66711543,128.1,128.09,47.86815224]
[1742501865909,184.07736413,128.1,128.09,55.66815224]
[1742501866103,109.00466114,128.1,128.09,55.66815224]
[1742501866307,41.23986114,128.1,128.09,55.66815224]
[1742501867103,20.90126114,128.1,128.09,55.66815224]
[1742501867410,9.50306774,128.14,128.09,47.85745224]
[1742501867609,9.50306774,128.14,128.13,12.53745224]
[1742501867810,9.50306774,128.14,128.13,47.86575224]
[1742501868114,41.1927009,128.19,128.13,40.05745224]
[1742501868407,29.06698068,128.18,128.15,12.53745224]
[1742501872116,16.85849893,128.17,128.15,12.53745224]
[1742501874316,36.27338784,128.16,128.15,12.53745224]
[1742501876719,28.46698784,128.16,128.15,12.53745224]
[1742501877821,9.05269893,128.17,128.16,7.8064]
[1742501878029,9.05269893,128.17,128.16,305.46385224]
[1742501878318,9.05269893,128.17,128.16,297.65745224]
[1742501879422,16.85849893,128.17,128.16,297.65745224]
[1742501880323,16.85849893,128.17,128.16,257.62]
[1742501882421,7.8064,128.16,128.15,0.05528076]
[1742501882618,40.03745224,128.16,128.11,270.13745224]
[1742501883119,7.8089,128.12,128.11,270.13745224]
[1742501888025,7.86378076,128.13,128.11,270.13745224]
[1742501888225,7.86378076,128.13,128.12,12.53745224]
[1742501888622,0.05528076,128.13,128.12,20.34635224]
[1742501890115,7.807,128.16,128.14,7.8076]
[1742501890429,7.807,128.16,128.15,12.53745224]
[1742501893029,16.85879893,128.17,128.15,20.34435224]
[1742501893228,16.85879893,128.17,128.16,12.53745224]
[1742501894532,7.8066,128.16,128.15,12.53745224]
[1742501895529,9.05269893,128.17,128.15,12.53745224]
[1742501895734,29.1574009,128.19,128.16,40.03745224]
[1742501896028,29.1574009,128.19,128.18,20.34265224]
[1742501896334,9.27111198,128.2,128.19,12.53745224]
[1742501897025,9.27111198,128.2,128.19,20.34205224]
[1742501898735,9.27111198,128.2,128.19,47.82205224]
[1742501899439,27.5,128.24,128.21,7.8034]
[1742501899629,41.7955,128.25,128.21,20.34085224]
[1742501900830,7.8016,128.24,128.21,20.34085224]
[1742501901529,7.8016,128.24,128.21,12.53745224]
[1742501902438,7.8016,128.24,128.21,20.34085224]
[1742501902737,41.7957,128.25,128.21,20.34085224]
[1742501903137,7.8016,128.24,128.21,20.34085224]
[1742501904038,7.8023,128.23,128.21,12.53745224]
[1742501904640,33.9945,128.25,128.21,12.53745224]
[1742501905142,7.8023,128.23,128.21,12.53745224]
[1742501909837,9.33619607,128.22,128.21,12.53745224]
[1742501911845,1.53339607,128.22,128.21,12.53745224]
[1742501912543,1.53339607,128.22,128.2,12.59493381]
[1742501912741,29.01339607,128.22,128.2,0.05748157]
[1742501913046,29.01339607,128.22,128.17,270.15745224]
[1742501913047,41.55084831,128.22,128.17,270.15745224]
[1742501914146,7.8052,128.18,128.17,270.15745224]
[1742501921551,7.8052,128.18,128.17,257.62]
[1742501925346,0.05748157,128.21,128.17,270.15745224]
[1742501925648,507.08251473,128.29,128.2,12.53745224]
[1742501925649,3.9946,128.26,128.2,12.53745224]
[1742501925843,45.0299424,128.27,128.25,12.53745224]
[1742501926042,45.0299424,128.27,128.26,20.33785224]
[1742501928756,1.61804135,128.27,128.26,20.33785224]
[1742501933560,29.02191577,128.31,128.29,7.7981]
[1742501933856,1.54191577,128.31,128.3,12.53745224]
[1742501934455,1.54191577,128.31,128.3,20.33535224]
[1742501934853,1.54191577,128.31,128.3,12.53745224]
[1742501936951,1.54191577,128.31,128.29,12.58895553]
[1742501937453,9.33951577,128.31,128.29,12.58895553]
[1742501937757,41.53936801,128.31,128.29,0.05150329]
[1742501938767,7.7979,128.3,128.29,0.05150329]
[1742501940660,7.7997,128.27,128.26,12.53745224]
[1742501941161,7.7994,128.28,128.26,12.53745224]
[1742501941362,41.53936801,128.31,128.27,12.53745224]
[1742501941563,29.00191577,128.31,128.27,12.53745224]
[1742501941766,0.05150329,128.3,128.28,0.05444534]
[1742501942353,7.7985,128.29,128.28,0.05444534]
[1742501950268,7.7985,128.29,128.28,12.59189758]
[1742501950466,0.05150329,128.3,128.28,12.59189758]
[1742501951672,7.7985,128.29,128.28,12.59189758]
[1742501955564,20.01407083,128.4,128.28,47.85189758]
[1742501955774,3.9737,128.39,128.35,12.53745224]
[1742501955974,39.2264,128.39,128.35,12.53745224]
[1742501956167,31.4337,128.39,128.35,12.53745224]
[1742501956676,31.4337,128.39,128.35,20.33235224]
[1742501956877,1.62692709,128.4,128.35,12.53745224]
[1742501957073,1.62692709,128.4,128.38,12.53745224]
[1742501957470,14.16437933,128.4,128.38,0.05233773]
[1742501957675,20.33045224,128.39,128.35,12.53745224]
[1742501957875,14.53585224,128.39,128.35,12.53745224]
[1742501958280,1.9984,128.39,128.36,12.53745224]
[1742501958879,9.84323773,128.39,128.36,12.59055595]
[1742501959181,9.84323773,128.39,128.36,0.05310371]
[1742501959880,7.7932,128.38,128.36,0.05310371]
[1742501965383,7.7937,128.37,128.36,0.05310371]
[1742501975881,7.7937,128.37,128.31,284.63220857]
[1742501975882,27.44,128.37,128.31,284.63220857]
[1742501976087,27.44,128.37,128.32,27.44]
[1742501976693,46.91510857,128.37,128.31,257.36]
[1742501976993,0.05188683,128.35,128.33,0.05990311]
[1742501978092,7.7955,128.34,128.33,0.05990311]
[1742501985498,1.62692709,128.4,128.33,20.33261142]
[1742501985792,43.41190105,128.43,128.39,12.47270831]
[1742501985995,86.97910324,128.43,128.42,12.47270831]
[1742501987201,86.97910324,128.43,128.42,20.26330831]
[1742501989093,0.05355461,128.44,128.42,7.7906]
[1742501989998,0.05355461,128.44,128.41,19.51335463]
[1742501989999,0.05355461,128.44,128.41,27.30425463]
[1742501990299,0.05355461,128.44,128.41,19.51335463]
[1742501990498,0.05355461,128.44,128.41,27.30425463]
[1742501993401,0.05355461,128.44,128.42,7.7906]
[1742501995703,0.05355461,128.44,128.41,7.85022355]
[1742501996605,7.84315461,128.44,128.41,7.85022355]
[1742501998904,7.79,128.43,128.41,7.85022355]
[1742501999102,0.05355461,128.44,128.41,0.05932355]
[1742501999304,27.42,128.43,128.41,0.05932355]
[1742501999499,7.7906,128.42,128.41,0.05932355]
[1742502003909,7.78,128.42,128.31,257.08]
[1742502004110,19.45403108,128.36,128.28,5.9345]
[1742502004310,19.45403108,128.34,128.28,5.9345]
[1742502004512,46.99403108,128.34,128.27,10.75602782]
[1742502004913,46.99403108,128.34,128.27,18.55552782]
[1742502005116,7.7983,128.3,128.29,0.05784823]
[1742502007020,7.7997,128.27,128.26,42.99158068]
[1742502007820,35.4193,128.28,128.26,42.99158068]
[1742502008119,27.67497742,128.28,128.26,43.04791051]
[1742502008519,27.67497742,128.28,128.26,0.05632983]
[1742502008719,35.47457742,128.28,128.26,0.05632983]
[1742502011622,7.7997,128.27,128.26,0.05632983]
[1742502012023,27.67497742,128.28,128.26,0.05632983]
[1742502012316,35.47427742,128.28,128.26,0.05632983]
[1742502014323,7.7997,128.27,128.26,0.05632983]
[1742502015418,35.47437742,128.28,128.26,0.05632983]
[1742502015619,0.05497742,128.28,128.26,47.15036091]
[1742502016111,0.05497742,128.28,128.27,7.7997]
[1742502031138,0.05497742,128.28,128.27,20.27662765]
[1742502034443,0.05497742,128.28,128.27,7.7997]
[1742502036639,0.05497742,128.28,128.26,265.15632983]
[1742502036943,0.05497742,128.28,128.26,277.63325748]
[1742502037642,0.05497742,128.28,128.27,7.7997]
[1742502039142,7.85447742,128.28,128.26,277.63335748]
[1742502041245,0.05497742,128.28,128.26,277.63335748]
[1742502041443,0.05497742,128.28,128.27,7.7997]
[1742502042447,7.85407742,128.28,128.26,277.63325748]
[1742502042641,7.85407742,128.28,128.26,20.33325748]
[1742502045352,0.05497742,128.28,128.27,7.7997]
[1742502045548,86.97910324,128.38,128.26,12.53325748]
[1742502045856,29.767,128.36,128.32,12.47692765]
[1742502046157,29.767,128.36,128.33,7.7958]
[1742502046744,42.29534401,128.36,128.33,7.85562974]
[1742502047847,50.08984401,128.36,128.33,7.85562974]
[1742502048050,12.47692765,128.35,128.33,7.85562974]
[1742502048252,12.47692765,128.34,128.33,0.05982974]
[1742502048555,20.27242765,128.34,128.33,0.05982974]
[1742502048852,12.47692765,128.34,128.33,0.05982974]
[1742502049752,20.27212765,128.35,128.33,0.05982974]
[1742502049953,20.27212765,128.35,128.33,7.85582974]
[1742502050154,40.03692765,128.35,128.33,0.05982974]
[1742502050657,40.03692765,128.35,128.33,7.85562974]
[1742502051254,47.83202765,128.35,128.33,0.05982974]
[1742502051961,7.7955,128.34,128.33,0.05982974]
[1742502052351,7.7968,128.32,128.3,12.47692765]
[1742502052556,7.7968,128.32,128.29,12.47692765]
[1742502052753,12.47692765,128.33,128.29,7.7981]
[1742502052954,7.797,128.32,128.29,7.7981]
[1742502053658,7.84704026,128.32,128.29,7.84962394]
[1742502054464,7.84704026,128.32,128.3,7.7979]
[1742502054658,0.05004026,128.32,128.3,7.7979]
[1742502054857,0.05004026,128.32,128.29,12.52845159]
[1742502055058,7.84704026,128.32,128.3,7.7979]
[1742502055460,7.84704026,128.32,128.29,12.52845159]
[1742502055762,0.05004026,128.32,128.3,20.27462765]
[1742502056663,7.84684026,128.32,128.3,20.27462765]
[1742502057063,7.84684026,128.32,128.3,7.7977]
[1742502060460,7.7973,128.31,128.29,20.32665159]
[1742502060661,0.05004026,128.32,128.29,12.52845159]
[1742502061269,7.7977,128.31,128.29,12.52845159]
[1742502062069,7.7977,128.31,128.29,20.32675159]
[1742502064876,7.84714026,128.32,128.3,7.7978]
[1742502065878,0.05004026,128.32,128.31,7.7973]
[1742502066081,0.05004026,128.32,128.29,12.52845159]
[1742502066377,0.05004026,128.32,128.29,20.32665159]
[1742502066577,7.7973,128.31,128.29,20.32665159]
[1742502071990,7.7973,128.31,128.3,7.7979]
[1742502072294,7.84704026,128.32,128.3,7.7979]
[1742502074195,7.7973,128.31,128.3,7.7979]
[1742502074490,7.7973,128.31,128.29,20.32665159]
[1742502075496,0.05004026,128.32,128.29,12.52845159]
[1742502075697,1.992,128.37,128.31,12.47692765]
[1742502075991,12.47692765,128.37,128.33,12.47692765]
[1742502076297,12.47692765,128.36,128.32,284.82]
[1742502076492,12.47692765,128.36,128.32,265.0964]
[1742502076993,0.0543561,128.35,128.33,0.05091417]
[1742502077195,0.0543561,128.35,128.33,7.84681417]
[1742502077394,0.0543561,128.35,128.33,0.05091417]
[1742502079592,0.0543561,128.35,128.33,7.84691417]
[1742502081894,0.0543561,128.35,128.34,7.7955]
[1742502083298,0.0543561,128.35,128.33,7.84671417]
[1742502084393,0.0543561,128.35,128.34,7.7955]
[1742502085491,0.0543561,128.35,128.34,20.27242765]
[1742502105301,130.48431473,128.47,128.38,7.7927]
[1742502105508,12.47692765,128.39,128.32,284.84]
[1742502105817,40.01692765,128.39,128.33,12.47692765]
[1742502106010,12.47692765,128.37,128.32,269.77692765]
[1742502106514,27.63421906,128.36,128.33,0.05894183]
[1742502106710,27.63421906,128.36,128.33,7.85494183]
[1742502106916,27.63421906,128.36,128.33,0.05894183]
[1742502107103,27.63421906,128.36,128.34,7.7955]
[1742502109316,27.63421906,128.36,128.35,7.7949]
[1742502109715,0.05421906,128.36,128.35,7.7949]
[1742502111513,0.05421906,128.36,128.33,0.05894183]
[1742502111817,35.3551,128.35,128.33,0.05894183]
[1742502112020,27.56,128.35,128.33,7.85464183]
[1742502113513,35.3549,128.35,128.33,7.85464183]
[1742502114521,35.3549,128.35,128.33,20.33156948]
[1742502114825,27.56,128.35,128.34,7.7955]
[1742502115117,0.05421906,128.36,128.34,12.47692765]
[1742502115616,0.05421906,128.36,128.33,12.53586948]
[1742502116320,0.05421906,128.36,128.34,7.7952]
[1742502116812,7.84851906,128.36,128.34,7.7952]
[1742502117415,0.05421906,128.36,128.35,7.7949]
[1742502118420,0.05421906,128.36,128.34,7.7952]
[1742502119415,7.84861906,128.36,128.34,7.7952]
[1742502121420,0.05421906,128.36,128.35,7.7949]
[1742502121621,0.05421906,128.36,128.33,12.53586948]
[1742502122023,7.84871906,128.36,128.34,7.7952]
[1742502125819,7.7949,128.35,128.33,20.33166948]
[1742502127220,7.7955,128.34,128.33,0.05894183]
[1742502127725,35.2755,128.34,128.33,0.05894183]
[1742502129621,7.7951,128.35,128.33,12.53586948]
[1742502130319,7.7951,128.35,128.33,20.33156948]
[1742502131432,35.32881906,128.36,128.33,20.33156948]
[1742502131830,35.32881906,128.36,128.33,12.53586948]
[1742502131831,27.53421906,128.36,128.33,12.53586948]
[1742502132025,27.53421906,128.36,128.34,12.47692765]
[1742502132628,27.53421906,128.36,128.35,7.7949]
[1742502132926,0.05421906,128.36,128.35,7.7949]
[1742502135324,43.23089136,128.42,128.35,39.91692765]
[1742502135525,43.23089136,128.42,128.4,12.47692765]
[1742502135827,10.80772284,128.42,128.41,12.47692765]
[1742502136529,10.80772284,128.42,128.41,20.26812765]
[1742502136732,10.80772284,128.42,128.41,12.47692765]
[1742502137132,10.80772284,128.42,128.4,0.05740509]
[1742502138228,10.80772284,128.42,128.4,7.84920509]
[1742502138429,27.68,128.43,128.41,12.47692765]
[1742502138623,3.75206885,128.45,128.41,12.47692765]
[1742502138827,27.68,128.44,128.41,20.26772765]
[1742502140131,27.68,128.44,128.42,7.7903]
[1742502140330,3.75206885,128.45,128.43,12.47692765]
[1742502140634,3.75206885,128.45,128.44,20.26632765]
[1742502140635,1.58036885,128.45,128.44,20.26632765]
[1742502140823,1.58036885,128.45,128.43,12.52773825]
[1742502142331,1.58036885,128.45,128.43,0.0508106]
[1742502142831,12.47692765,128.44,128.38,48.40972765]
[1742502143033,40.63692765,128.43,128.38,20.26972765]
[1742502143231,28.16,128.43,128.39,12.47692765]
[1742502143433,28.16,128.43,128.39,20.26932765]
[1742502144035,0.05692131,128.42,128.4,0.05096772]
[1742502144432,0.05692131,128.42,128.41,20.26812765]
[1742502144734,0.05692131,128.42,128.41,12.47692765]
[1742502145136,0.05692131,128.42,128.4,12.52789537]
[1742502146635,0.05692131,128.42,128.4,0.05096772]
[1742502147134,0.05692131,128.42,128.4,12.52789537]
[1742502147334,0.05692131,128.42,128.41,12.47692765]
[1742502148431,0.05692131,128.42,128.41,20.26812765]
[1742502153235,0.05692131,128.42,128.41,12.47692765]
[1742502153544,0.05692131,128.42,128.4,20.31939537]
[1742502153742,0.05692131,128.42,128.41,7.7912]
[1742502154042,0.05692131,128.42,128.4,12.52789537]
[1742502154539,0.05692131,128.42,128.4,20.31929537]
[1742502155740,0.05692131,128.42,128.41,7.7912]
[1742502156535,1.58036885,128.45,128.44,7.7894]
[1742502156740,1.58036885,128.45,128.44,20.26632765]
[1742502158542,1.58036885,128.45,128.44,7.7894]
[1742502159441,1.58036885,128.45,128.43,20.31789539]
[1742502159944,1.58036885,128.45,128.43,7.84096774]
[1742502161460,1.58036885,128.45,128.44,7.7894]
[1742502164558,1.58036885,128.45,128.44,20.26632765]
[1742502175667,1.58036885,128.45,128.44,12.47692765]
[1742502175874,1.58036885,128.45,128.43,12.52819539]
[1742502176672,1.58036885,128.45,128.44,12.47692765]
[1742502176868,1.58036885,128.45,128.44,20.26632765]
[1742502179871,1.53076663,128.49,128.48,7.787]
[1742502180272,1.53076663,128.49,128.48,20.26392765]
[1742502180474,1.53076663,128.49,128.48,7.787]
[1742502182479,9.31716663,128.49,128.47,20.32143184]
[1742502182672,1.53076663,128.49,128.48,12.47692765]
[1742502182972,1.53076663,128.49,128.47,0.05730419]
[1742502182973,7.787,128.48,128.47,0.05730419]
[1742502183675,7.7879,128.47,128.44,12.47692765]
[1742502184070,28.3,128.46,128.44,12.47692765]
[1742502184574,28.3,128.46,128.45,20.26562765]
[1742502184779,0.05148027,128.46,128.45,20.26562765]
[1742502185581,0.05148027,128.46,128.45,7.7887]
[1742502187081,0.05148027,128.46,128.45,20.26562765]
[1742502191871,0.05148027,128.46,128.44,20.32461515]
[1742502192073,0.05148027,128.46,128.44,7.8476875]
[1742502193181,0.05148027,128.46,128.44,0.0585875]
[1742502193378,12.52840792,128.46,128.44,0.0585875]
[1742502194585,7.7888,128.45,128.44,0.0585875]
[1742502202193,20.26572765,128.45,128.44,0.0585875]
[1742502202694,7.7888,128.45,128.44,0.0585875]
[1742502204795,20.26572765,128.45,128.44,0.0585875]
[1742502206595,20.26572765,128.45,128.44,8.75e-05]
[1742502207594,20.26572765,128.45,128.38,285.16]
[1742502207595,7.7925,128.39,128.38,257.02]
[1742502207989,40.59692765,128.42,128.38,257.02]
[1742502208202,28.12,128.42,128.4,12.47692765]
[1742502208887,35.96833936,128.42,128.4,12.52672995]
[1742502210001,35.96833936,128.42,128.4,20.31842995]
[1742502210393,7.84833936,128.42,128.4,20.31842995]
[1742502210999,0.05743936,128.42,128.41,7.7912]
[1742502214902,0.05743936,128.42,128.4,20.31822995]
[1742502215200,12.53436701,128.42,128.4,0.0498023]
[1742502216601,7.7912,128.41,128.4,0.0498023]
[1742502220502,48.34812765,128.41,128.4,0.0498023]
[1742502222305,20.26812765,128.41,128.4,0.0498023]
[1742502222513,0.05743936,128.42,128.4,0.0498023]
[1742502223215,7.7912,128.41,128.4,0.0498023]
[1742502227921,20.26812765,128.41,128.4,0.0498023]
[1742502228520,7.7912,128.41,128.4,0.0498023]
[1742502232123,35.90843936,128.42,128.4,0.0498023]
[1742502232718,7.7912,128.41,128.4,0.0498023]
[1742502233123,12.47692765,128.41,128.36,12.47692765]
[1742502233322,7.7931,128.38,128.36,12.47692765]
[1742502234317,0.05248292,128.38,128.36,0.05781858]
[1742502235223,7.7937,128.37,128.36,0.05781858]
[1742502236226,20.27062765,128.37,128.36,0.05781858]
[1742502236428,12.47692765,128.34,128.3,10.75602782]
[1742502236726,40.51692765,128.34,128.3,10.75602782]
[1742502236928,7.797,128.32,128.3,10.75602782]
[1742502237224,7.797,128.32,128.3,12.47692765]
[1742502237523,7.85539738,128.32,128.3,12.53087201]
[1742502239931,0.05839738,128.32,128.3,12.53087201]
[1742502240425,7.85509738,128.32,128.3,12.53087201]
[1742502241131,0.05839738,128.32,128.3,12.53087201]
[1742502241831,0.05839738,128.32,128.3,0.05394436]
[1742502242233,7.85539738,128.32,128.3,0.05394436]
[1742502242530,0.05839738,128.32,128.3,0.05394436]
[1742502243124,7.7973,128.31,128.3,0.05394436]
[1742502249838,7.85539738,128.32,128.3,0.05394436]
[1742502250238,0.05839738,128.32,128.3,12.53087201]
[1742502250438,0.05839738,128.32,128.31,12.47692765]
[1742502250736,0.05839738,128.32,128.31,20.27422765]
[1742502251239,0.05839738,128.32,128.31,7.7973]
[1742502256844,7.85509738,128.32,128.3,7.85164436]
[1742502262045,7.7973,128.31,128.3,0.05394436]
[1742502266244,20.27422765,128.31,128.3,0.05394436]
[1742502269339,20.27602765,128.29,128.26,257.12]
[1742502269847,20.27602765,128.29,128.26,264.9203]
[1742502270343,20.33167221,128.29,128.26,264.97650061]
[1742502270543,7.7993,128.28,128.26,264.97650061]
[1742502270848,12.53257221,128.29,128.26,264.97650061]
[1742502270849,40.29257221,128.29,128.26,257.17620061]
[1742502271045,12.47692765,128.28,128.26,0.05620061]
[1742502271447,7.7997,128.27,128.26,0.05620061]
[1742502272643,20.27642765,128.28,128.26,0.05620061]
[1742502273338,12.47692765,128.28,128.26,0.05620061]
[1742502273936,20.27632765,128.28,128.26,0.05620061]
[1742502275839,20.27632765,128.28,128.26,7.85640061]
[1742502276039,7.7994,128.28,128.26,7.85640061]
[1742502276342,7.7994,128.28,128.26,0.05620061]
[1742502276847,7.7994,128.28,128.26,7.85640061]
[1742502277048,7.7994,128.28,128.26,0.05620061]
[1742502277451,7.7997,128.27,128.26,0.05620061]
[1742502278748,20.27662765,128.27,128.26,0.05620061]
[1742502285149,12.47692765,128.28,128.26,0.05620061]
[1742502285357,0.05564456,128.29,128.26,12.53312826]
[1742502285658,0.05564456,128.29,128.27,7.7994]
[1742502285659,7.85444456,128.29,128.27,7.7994]
[1742502286055,12.47692765,128.28,128.26,0.05620061]
[1742502286256,47.93662765,128.27,128.26,0.05620061]
[1742502290962,40.13692765,128.27,128.21,257.3]
[1742502291160,12.47692765,128.23,128.18,40.09692765]
[1742502291355,12.47692765,128.25,128.2,12.47692765]
[1742502291548,7.8015,128.25,128.21,12.47692765]
[1742502291753,7.8015,128.25,128.21,40.11692765]
[1742502291959,7.8015,128.25,128.23,7.8022]
[1742502292160,0.05729644,128.24,128.23,7.8022]
[1742502293055,0.05729644,128.24,128.23,20.27912765]
[1742502305369,0.05729644,128.24,128.23,7.8022]
[1742502306668,0.05729644,128.24,128.22,0.05077754]
[1742502307268,7.85919644,128.24,128.22,7.85347754]
[1742502310469,0.05729644,128.24,128.22,7.85347754]
[1742502310871,7.85899644,128.24,128.22,7.85347754]
[1742502311873,0.05729644,128.24,128.22,7.85347754]
[1742502312670,7.85899644,128.24,128.22,7.85347754]
[1742502312869,0.05729644,128.24,128.23,7.8022]
[1742502313572,0.05729644,128.24,128.22,7.85317754]
[1742502314062,7.85889644,128.24,128.22,7.85317754]
[1742502314569,7.85889644,128.24,128.22,0.05077754]
[1742502314570,7.8022,128.23,128.22,0.05077754]
[1742502315776,7.85919644,128.24,128.22,7.85357754]
[1742502316569,7.8022,128.23,128.22,0.05077754]
[1742502326376,7.8033,128.22,128.18,27.52]
[1742502326580,20.28022765,128.22,128.18,27.52]
[1742502327087,7.8033,128.22,128.19,7.8044]
[1742502327584,7.85376555,128.22,128.19,7.86330627]
[1742502327985,7.8035,128.21,128.19,7.86330627]
[1742502329885,7.85356555,128.22,128.2,7.8039]
[1742502338195,7.8037,128.21,128.19,0.05890627]
[1742502341597,7.8037,128.21,128.19,12.53583392]
[1742502343807,7.804,128.2,128.19,12.53583392]
[1742502347011,7.804,128.2,128.19,0.05890627]
[1742502347211,7.804,128.2,128.19,12.53583392]
[1742502352516,7.804,128.2,128.19,0.05890627]
[1742502352814,7.804,128.2,128.19,12.53583392]
[1742502354921,0.05046555,128.22,128.19,12.53583392]
[1742502355118,0.05046555,128.22,128.21,12.47692765]
[1742502355917,0.05046555,128.22,128.21,20.28032765]
[1742502360328,0.05046555,128.22,128.21,7.8034]
[1742502360713,7.85326555,128.22,128.21,7.8034]
[1742502361624,7.85326555,128.22,128.2,20.28052765]
[1742502361924,27.52,128.27,128.21,12.47692765]
[1742502362117,27.52,128.27,128.24,12.47692765]
[1742502362520,46.12722284,128.28,128.25,12.47692765]
[1742502363118,38.38719377,128.28,128.26,7.8003]
[1742502363314,38.38719377,128.28,128.25,12.52928413]
[1742502363527,27.57947093,128.28,128.25,12.52928413]
[1742502363927,27.57947093,128.28,128.26,7.7998]
[1742502364225,27.57947093,128.28,128.26,20.27672765]
[1742502364426,0.05947093,128.28,128.26,20.27672765]
[1742502364630,12.53639858,128.28,128.25,0.05235648]
[1742502364925,0.05947093,128.28,128.25,0.05235648]
[1742502365516,7.8002,128.27,128.25,7.85305648]
[1742502366819,7.8004,128.26,128.25,0.05235648]
[1742502368120,7.8,128.27,128.25,0.05235648]
[1742502368320,0.05947093,128.28,128.25,0.05235648]
[1742502368525,0.05947093,128.28,128.25,7.85285648]
[1742502369027,7.85917093,128.28,128.25,7.85285648]
[1742502369228,0.05947093,128.28,128.25,7.85285648]
[1742502370125,0.05947093,128.28,128.25,0.05235648]
[1742502370432,0.05947093,128.28,128.26,12.47692765]
[1742502370822,0.05947093,128.28,128.27,7.7997]
[1742502371733,0.05947093,128.28,128.27,20.27662765]
[1742502373133,0.05947093,128.28,128.27,12.47692765]
[1742502378236,0.05947093,128.28,128.26,12.47692765]
[1742502378736,7.8003,128.27,128.26,12.47692765]
[1742502379935,7.8004,128.26,128.25,12.52928413]
[1742502380238,7.8004,128.26,128.25,0.05235648]
[1742502394451,7.8,128.27,128.25,12.52928413]
[1742502394653,7.8,128.27,128.26,12.47692765]
[1742502396445,0.05947093,128.28,128.26,12.47692765]
[1742502396649,0.05947093,128.28,128.27,12.47692765]
[1742502397051,7.85857093,128.28,128.27,12.47692765]
[1742502397349,0.05947093,128.28,128.27,12.47692765]
[1742502398955,7.85857093,128.28,128.27,12.47692765]
[1742502399452,7.7997,128.27,128.26,39.97692765]
[1742502400852,7.7997,128.27,128.26,27.5]
[1742502401045,7.8004,128.26,128.25,0.05235648]
[1742502401847,7.8004,128.26,128.25,12.52928413]
[1742502402353,0.05947093,128.28,128.25,12.52928413]
[1742502402550,0.05947093,128.28,128.27,12.47692765]
[1742502402747,0.05947093,128.28,128.27,39.97692765]
[1742502405256,0.05947093,128.28,128.27,47.77662765]
[1742502422068,4.1814,128.33,128.31,7.7972]
[1742502422564,4.1814,128.33,128.3,12.47692765]
[1742502422872,11.9778,128.33,128.3,20.27452765]
[1742502423069,11.9778,128.33,128.3,12.47692765]
[1742502423372,4.23708675,128.33,128.3,12.53142402]
[1742502424471,7.7967,128.32,128.3,20.32902402]
[1742502424965,4.23708675,128.33,128.3,0.05449637]
[1742502425166,7.7973,128.31,128.3,0.05449637]
[1742502426767,4.23708675,128.33,128.3,12.53142402]
[1742502427474,12.03348675,128.33,128.3,20.32912402]
[1742502429060,7.7968,128.32,128.3,20.32912402]
[1742502435478,12.03358675,128.33,128.3,20.32912402]
[1742502437180,0.05568675,128.33,128.32,20.27362765]
[1742502437372,0.05568675,128.33,128.32,12.47692765]
[1742502437570,12.5326144,128.33,128.3,0.05449637]
[1742502437870,12.47692765,128.31,128.25,269.81692765]
[1742502438076,27.5,128.32,128.25,269.81692765]
[1742502438077,7.7988,128.29,128.25,305.11762765]
[1742502438277,12.47692765,128.31,128.26,12.47692765]
[1742502438780,7.7988,128.29,128.26,12.47692765]
[1742502439080,7.84969433,128.29,128.26,12.53148298]
[1742502439877,7.84969433,128.29,128.26,20.33178298]
[1742502440679,7.7992,128.28,128.26,0.05455533]
[1742502441682,7.7997,128.27,128.26,0.05455533]
[1742502442777,7.8004,128.26,128.25,257.34]